bitfinex/quotes_ETHUSD_20240816
["timestamp","ask_amount","ask_price","bid_price","bid_amount"]
[1723851339248,0.09272837,2601.1,2600.4,3.84546]
[1723851339249,0.7,2600.7,2600.4,3.84546]
[1723851339453,0.7,2600.7,2600.4,3.84545]
[1723851339753,0.08928309,2600.6,2600.4,3.84545]
[1723851340064,0.08928309,2600.6,2600.2,3.84576]
[1723851340353,0.08928309,2600.6,2600.0,3.84606]
[1723851340354,2.3371,2600.5,2600.0,3.84606]
[1723851340657,0.08893327,2600.4,2600.0,3.84606]
[1723851341344,0.08893327,2600.4,2600.2,7.69154]
[1723851341523,0.08893327,2600.4,2600.3,3.0]
[1723851341708,3.0371,2600.7,2600.3,3.0]
[1723851341904,0.08887992,2600.4,2600.3,3.0]
[1723851342131,3.0371,2600.7,2600.3,3.0]
[1723851342335,0.08886589,2600.4,2600.3,3.0]
[1723851342538,3.0371,2600.7,2600.3,3.0]
[1723851342740,0.08887071,2600.4,2600.3,3.0]
[1723851342936,3.0371,2600.7,2600.3,3.0]
[1723851345472,3.0371,2600.7,2600.3,6.8457]
[1723851345842,10.4333,2601.1,2600.7,3.84502]
[1723851346164,8.16,2601.1,2600.8,7.68981]
[1723851346331,0.7,2601.1,2600.9,0.768981]
[1723851346532,0.7,2601.1,2600.8,3.84487]
[1723851346841,0.7,2601.1,2600.8,7.68974]
[1723851347465,0.7,2601.1,2600.8,3.84487]
[1723851347760,0.7,2601.1,2600.8,4.913876]
[1723851349569,2.9733,2601.7,2600.8,3.371906]
[1723851349768,2.9733,2601.7,2601.6,3.84378]
[1723851349949,2.9733,2601.7,2601.4,3.84397]
[1723851350126,2.2733,2602.0,2601.7,3.84359]
[1723851350319,2.2733,2602.2,2601.3,10.307329]
[1723851350572,0.7,2602.3,2601.9,3.8432]
[1723851350862,0.7,2602.3,2601.9,4.22752]
[1723851351097,0.7,2602.3,2602.2,3.8429]
[1723851351373,2.2733,2602.7,2602.3,3.84265]
[1723851351374,2.9733,2602.7,2602.3,3.84265]
[1723851351536,2.9733,2602.7,2602.5,3.84244]
[1723851352061,2.9733,2602.7,2602.3,3.84265]
[1723851352623,2.9733,2602.7,2602.1,3.84301]
[1723851352879,2.9733,2602.7,2602.2,3.0]
[1723851353647,0.7,2602.3,2602.2,3.0]
[1723851353862,0.7,2602.3,2602.1,3.84304]
[1723851354031,0.77029833,2602.3,2602.2,3.0]
[1723851354633,0.07029833,2602.3,2602.2,3.0]
[1723851354888,0.7,2602.3,2602.2,3.0]
[1723851355120,0.77010191,2602.3,2602.2,3.0]
[1723851355397,0.77010191,2602.3,2601.9,3.84325]
[1723851355398,0.07010191,2602.3,2602.1,3.84292]
[1723851355601,0.07010191,2602.3,2602.2,3.0]
[1723851355917,0.069879,2602.3,2602.2,3.0]
[1723851356069,0.7,2602.3,2602.2,3.0]
[1723851356273,0.769879,2602.3,2602.2,3.8429]
[1723851356498,0.069879,2602.3,2602.2,6.8429]
[1723851356853,0.069879,2602.3,2602.2,3.0]
[1723851357154,0.069879,2602.3,2602.0,3.84307]
[1723851357155,0.069879,2602.3,2602.1,6.84304]
[1723851357356,0.069879,2602.3,2602.2,7.6858]
[1723851357599,0.7,2602.8,2602.6,3.84217]
[1723851357963,0.06614744,2602.7,2602.4,3.84254]
[1723851358184,1.74333,2602.8,2602.5,3.0]
[1723851358512,0.7,2602.8,2602.6,3.84228]
[1723851358856,0.7,2602.8,2602.5,3.0]
[1723851359285,1.74333,2602.8,2602.5,3.0]
[1723851359859,0.7,2602.8,2602.5,3.0]
[1723851360700,2.2733,2602.3,2601.8,3.84344]
[1723851360997,2.2733,2602.3,2601.6,7.32]
[1723851360998,0.7,2602.0,2601.6,3.84374]
[1723851361395,0.7,2602.0,2601.4,3.84396]
[1723851361583,0.06521708,2601.9,2601.6,3.84375]
[1723851364190,0.06521708,2601.9,2601.7,3.0]
[1723851364761,0.7,2602.4,2602.1,3.84301]
[1723851365362,0.7,2602.1,2601.8,3.0]
[1723851365587,0.7,2602.1,2601.9,3.84325]
[1723851365790,9.07445746,2603.2,2602.0,3.0]
[1723851365791,2.9847,2602.6,2602.0,3.0]
[1723851366132,2.9847,2602.6,2602.3,3.84273]
[1723851366397,2.9847,2602.6,2602.2,3.84278]
[1723851366398,0.7,2602.3,2602.2,3.84278]
[1723851366597,0.7,2602.3,2602.2,6.84278]
[1723851366910,2.9847,2602.6,2602.2,6.84278]
[1723851367080,0.7,2602.6,2602.3,3.0]
[1723851367266,0.7,2602.6,2602.5,3.84245]
[1723851367482,0.7,2602.6,2602.3,10.68537]
[1723851368034,0.7,2602.6,2602.4,3.84254]
[1723851368520,0.06538108,2602.5,2602.4,3.84254]
[1723851368737,0.06538108,2602.5,2602.4,3.0]
[1723851369317,0.06538108,2602.5,2602.3,3.0]
[1723851369519,0.7,2602.6,2602.3,3.0]
[1723851369880,0.7,2602.6,2602.3,6.84272]
[1723851370079,0.7,2602.6,2602.4,3.84259]
[1723851370330,0.7,2602.6,2602.5,3.0]
[1723851370996,0.7,2602.9,2602.7,3.84215]
[1723851371194,0.7,2602.9,2602.5,3.3]
[1723851371422,0.7,2602.9,2602.5,6.84242]
[1723851371723,0.7,2602.9,2602.5,3.0]
[1723851371883,6.2757,2603.0,2602.5,3.0]
[1723851371884,0.7,2602.6,2602.5,3.0]
[1723851372086,1.06791736,2602.6,2602.3,3.0]
[1723851372424,2.2847,2602.5,2602.3,3.0]
[1723851372627,2.2847,2602.5,2602.1,3.0]
[1723851372794,0.7,2602.3,2602.1,3.0]
[1723851373990,2.2847,2602.2,2602.1,3.0]
[1723851374521,2.2847,2602.2,2602.0,7.32]
[1723851374522,2.34768407,2602.2,2602.0,7.32]
[1723851375610,0.7,2601.8,2601.6,7.68734]
[1723851375809,0.7,2601.8,2601.7,3.0]
[1723851379006,0.7,2601.8,2601.7,6.84364]
[1723851380816,2.9847,2602.2,2601.8,3.84349]
[1723851381054,2.9847,2602.2,2602.0,3.84319]
[1723851381189,0.06296185,2602.1,2602.0,3.84319]
[1723851381530,0.06296185,2602.1,2602.0,6.84319]
[1723851381887,2.9847,2602.2,2602.0,6.84319]
[1723851382106,2.9847,2602.2,2602.1,6.84304]
[1723851382306,0.7,2602.2,2602.1,6.84304]
[1723851382509,0.76303356,2602.2,2602.1,6.84304]
[1723851384636,0.76303356,2602.2,2602.1,3.0]
[1723851384833,0.76303356,2602.2,2601.9,3.0]
[1723851385208,0.76303356,2602.2,2601.9,6.84331]
[1723851386604,0.76303356,2602.2,2602.0,3.84319]
[1723851386837,0.76303356,2602.2,2602.1,3.0]
[1723851387194,0.06303356,2602.2,2602.1,3.0]
[1723851387413,0.7,2602.2,2602.1,3.0]
[1723851387611,0.76307231,2602.2,2602.1,3.0]
[1723851388213,3.08907231,2602.2,2602.1,3.0]
[1723851388536,3.08907231,2602.2,2601.8,3.84334]
[1723851388537,3.08907231,2602.2,2601.9,3.0]
[1723851389067,0.7,2601.8,2601.5,7.6877]
[1723851389210,3.026,2601.8,2601.5,3.84385]
[1723851390331,3.026,2601.8,2601.7,3.84364]
[1723851390538,2.326,2602.0,2601.7,3.0]
[1723851390700,2.326,2602.0,2601.8,3.84336]
[1723851390899,2.326,2602.0,2601.7,6.84363]
[1723851390900,2.326,2602.0,2601.9,6.84334]
[1723851394360,2.38685001,2602.0,2601.9,6.84334]
[1723851397274,0.06085001,2602.0,2601.9,6.84334]
[1723851400033,0.06085001,2602.0,2601.9,3.0]
[1723851400265,2.326,2601.9,2601.8,3.0]
[1723851400452,3.026,2601.6,2601.5,3.0]
[1723851400651,3.026,2601.6,2601.1,3.84443]
[1723851400851,3.08645702,2601.6,2601.1,3.84443]
[1723851401063,0.7,2601.3,2600.9,7.68946]
[1723851401262,0.7,2601.3,2600.9,3.84468]
[1723851401577,0.06006471,2601.2,2600.9,3.84468]
[1723851401753,0.7,2601.3,2600.9,3.84468]
[1723851401950,0.05993769,2601.1,2600.9,3.84468]
[1723851402151,0.7,2601.3,2600.9,3.84468]
[1723851402353,0.05983959,2601.0,2600.9,3.84468]
[1723851402578,2.326,2601.2,2600.9,3.0]
[1723851402787,0.05981657,2601.0,2600.9,3.8448]
[1723851402938,2.326,2601.2,2600.9,3.8448]
[1723851403140,2.326,2601.2,2601.0,3.0]
[1723851403717,2.326,2601.2,2600.7,7.69]
[1723851403718,2.326,2601.2,2600.8,3.0]
[1723851404190,2.326,2601.2,2600.9,7.68942]
[1723851404341,2.326,2601.2,2601.0,3.0]
[1723851404543,2.326,2601.2,2601.0,6.84465]
[1723851405394,4.44768536,2601.6,2601.0,6.84465]
[1723851405395,3.026,2601.6,2601.1,3.84452]
[1723851405557,3.026,2601.6,2601.2,3.0]
[1723851405735,3.3286,2601.6,2601.2,3.0]
[1723851406177,3.026,2601.6,2601.2,6.84435]
[1723851406879,3.026,2601.6,2601.2,3.0]
[1723851407648,2.3073,2601.5,2601.2,3.0]
[1723851407859,2.3073,2601.5,2601.0,6.84465]
[1723851408068,2.60803,2601.5,2601.0,6.84465]
[1723851408494,2.3073,2601.5,2601.2,3.84428]
[1723851408700,2.3073,2601.5,2601.3,3.0]
[1723851409070,2.3073,2601.5,2601.2,3.0]
[1723851409270,2.60803,2601.5,2601.2,3.0]
[1723851409476,2.3073,2601.2,2601.0,3.0]
[1723851409710,0.7,2601.0,2600.9,3.0]
[1723851410656,2.3073,2601.2,2600.9,6.8448]
[1723851411497,2.3073,2601.2,2600.9,10.68954]
[1723851411795,2.3073,2601.2,2600.9,6.84473]
[1723851412598,2.3073,2601.2,2601.1,3.84452]
[1723851412794,2.3073,2601.2,2601.1,6.84452]
[1723851414399,2.3073,2601.2,2601.1,3.0]
[1723851414808,2.3073,2601.2,2601.0,3.0]
[1723851415024,2.3073,2601.2,2600.9,3.0]
[1723851415383,3.0073,2601.0,2600.9,3.0]
[1723851415722,0.7,2600.7,2600.4,3.84547]
[1723851416020,0.7,2600.7,2600.3,3.8457]
[1723851416221,0.7,2600.4,2600.1,3.84587]
[1723851416430,2.3073,2600.6,2600.3,3.84571]
[1723851416721,0.7,2600.7,2600.4,0.384571]
[1723851416922,0.7,2600.7,2600.6,3.84526]
[1723851417083,0.7,2601.0,2600.6,3.84526]
[1723851417277,0.7,2601.0,2600.6,4.8981741]
[1723851417692,0.7,2601.0,2600.8,3.84494]
[1723851417892,0.7,2601.0,2600.9,3.84482]
[1723851418145,0.7,2601.0,2600.9,3.0]
[1723851418306,2.3073,2601.2,2600.9,3.0]
[1723851418636,0.7,2601.3,2601.1,3.84439]
[1723851418791,0.7,2601.3,2601.0,7.68911]
[1723851418996,0.7,2601.3,2601.1,3.0]
[1723851419391,3.70713,2601.3,2600.9,6.84471]
[1723851419631,3.0073,2601.3,2600.9,6.84471]
[1723851420605,3.0073,2601.3,2600.9,3.0]
[1723851420838,3.0073,2601.3,2600.9,6.84472]
[1723851421399,3.0073,2601.3,2601.0,3.84463]
[1723851421600,2.3073,2601.3,2601.1,4.068935]
[1723851421910,3.0073,2601.3,2601.1,3.0]
[1723851423634,3.0073,2601.0,2600.9,3.0]
[1723851423804,3.0073,2601.0,2600.6,3.84517]
[1723851423805,0.7,2600.8,2600.7,3.0]
[1723851424510,0.7,2600.8,2600.7,6.84511]
[1723851425016,2.3073,2601.3,2600.8,3.84483]
[1723851425214,2.3073,2601.3,2600.9,3.0]
[1723851425448,2.3073,2601.3,2600.9,6.84473]
[1723851425617,2.3073,2601.3,2600.9,10.68947]
[1723851425822,0.7,2601.1,2601.0,3.84466]
[1723851426016,2.3073,2601.3,2601.2,3.84437]
[1723851426330,2.9803,2601.6,2601.2,6.84437]
[1723851426535,0.7,2601.3,2601.1,3.84452]
[1723851426708,3.67743,2601.6,2601.2,3.0]
[1723851426911,3.67743,2601.6,2601.2,6.84435]
[1723851427336,0.7,2601.3,2601.2,3.0]
[1723851427606,0.7,2601.3,2601.1,6.84451]
[1723851427944,2.97743,2601.6,2601.2,3.84437]
[1723851428154,2.97743,2601.6,2600.6,11.16522]
[1723851428155,0.7,2600.9,2600.5,3.84531]
[1723851428318,0.7,2600.9,2600.3,7.6912]
[1723851428319,2.2803,2600.8,2600.3,7.6912]
[1723851428531,0.7,2600.6,2600.3,3.84558]
[1723851429400,0.7,2600.6,2600.3,7.6912]
[1723851429657,2.2803,2600.8,2600.6,3.84515]
[1723851429858,0.7,2600.9,2600.7,3.0]
[1723851430260,0.7,2600.6,2600.5,3.0]
[1723851432050,2.9803,2600.6,2600.5,3.0]
[1723851432356,2.9803,2600.6,2600.4,3.0]
[1723851432575,2.9803,2600.6,2600.2,7.69159]
[1723851432576,2.9803,2600.6,2600.3,3.0]
[1723851433219,2.9803,2600.6,2600.3,6.84569]
[1723851434448,2.9803,2600.6,2600.4,3.84554]
[1723851434617,2.9803,2600.9,2600.5,6.84541]
[1723851434823,2.9803,2600.9,2600.6,3.84518]
[1723851435042,2.9803,2600.9,2600.7,3.0]
[1723851435973,3.27833,2600.9,2600.7,3.0]
[1723851436284,0.7,2600.5,2600.3,3.84563]
[1723851436456,0.7,2600.5,2600.4,3.0]
[1723851437047,0.7,2600.8,2600.4,6.8455]
[1723851437220,0.7,2600.8,2600.7,3.84511]
[1723851437572,2.31130046,2601.5,2600.9,3.84474]
[1723851437573,2.2803,2601.1,2600.9,3.84474]
[1723851437872,2.2803,2601.3,2600.9,3.84474]
[1723851438073,2.2803,2601.3,2601.0,3.0]
[1723851438437,0.7,2601.1,2601.0,6.84467]
[1723851439332,2.2803,2601.3,2601.0,6.84467]
[1723851439963,0.7,2601.1,2601.0,3.0]
[1723851440162,0.7,2601.1,2600.9,6.84479]
[1723851440336,0.7,2601.1,2600.9,3.0]
[1723851441137,0.7,2601.1,2600.7,3.0]
[1723851441138,0.7,2600.8,2600.7,3.0]
[1723851442041,0.7,2600.8,2600.7,6.84511]
[1723851442558,0.7,2601.1,2600.7,6.84511]
[1723851445535,0.7,2601.1,2600.8,3.84482]
[1723851445769,0.7,2601.1,2600.9,3.0]
[1723851447339,0.7,2601.1,2600.9,6.84482]
[1723851447540,0.7,2601.1,2600.9,3.0]
[1723851447740,0.7,2601.1,2600.8,6.84496]
[1723851447972,0.7,2601.1,2600.8,3.0]
[1723851448274,1.11911431,2601.1,2600.8,3.0]
[1723851449777,2.2548,2601.0,2600.8,3.0]
[1723851449972,2.2548,2601.0,2600.6,3.0]
[1723851449973,0.7,2600.7,2600.6,3.0]
[1723851457449,0.7,2601.1,2600.8,3.84489]
[1723851457675,0.7,2601.1,2600.9,3.0]
[1723851458044,0.7,2601.1,2600.9,6.84477]
[1723851458388,0.7,2601.1,2600.9,3.0]
[1723851458558,1.11656431,2601.1,2600.9,3.0]
[1723851458953,0.7,2600.7,2600.6,3.84522]
[1723851459287,0.7,2600.7,2600.6,6.84522]
[1723851460466,0.7,2601.0,2600.6,3.0]
[1723851460666,3.46564309,2601.2,2600.8,3.84484]
[1723851460868,1.21084309,2601.2,2601.0,3.84467]
[1723851461108,0.7,2601.0,2600.9,3.0]
[1723851462104,2.9548,2601.0,2600.9,3.0]
[1723851462315,3.77046431,2601.0,2600.7,3.0]
[1723851463266,4.9813074,2601.0,2600.7,3.0]
[1723851463668,3.77046431,2601.0,2600.7,3.0]
[1723851464064,3.77046431,2601.0,2600.7,6.84509]
[1723851464283,2.9548,2601.0,2600.7,6.84509]
[1723851464480,1.21084309,2601.2,2600.7,3.0]
[1723851464697,1.21084309,2601.2,2600.4,7.32]
[1723851464698,4.16564309,2601.3,2601.1,3.84452]
[1723851464914,2.9548,2601.3,2601.1,3.84443]
[1723851465083,4.16564309,2601.3,2601.1,3.84443]
[1723851465705,0.05959314,2601.2,2601.1,3.84443]
[1723851465891,0.05959314,2601.2,2601.1,6.84443]
[1723851466105,0.05959314,2601.2,2601.1,3.0]
[1723851466106,1.21084309,2601.2,2601.1,3.0]
[1723851466407,1.2703411,2601.2,2601.0,3.0]
[1723851466923,0.05949801,2601.2,2601.0,3.0]
[1723851467210,1.21084309,2601.2,2601.0,3.0]
[1723851467371,0.05939991,2601.1,2601.0,3.0]
[1723851470234,4.16564309,2601.3,2601.0,6.84467]
[1723851470538,0.05955227,2601.1,2601.0,6.84467]
[1723851470740,4.16564309,2601.3,2601.0,6.84467]
[1723851470950,0.05955227,2601.1,2601.0,6.84467]
[1723851471244,0.05955227,2601.1,2601.0,3.0]
[1723851471402,4.16564309,2601.3,2601.0,3.0]
[1723851471598,0.05955227,2601.1,2601.0,3.0]
[1723851471798,4.16564309,2601.3,2601.0,3.0]
[1723851472030,0.05940957,2601.1,2601.0,3.0]
[1723851472343,4.16564309,2601.3,2601.0,3.0]
[1723851472543,0.05940957,2601.1,2601.0,3.0]
[1723851472743,4.16564309,2601.3,2601.0,3.0]
[1723851472946,0.05940957,2601.1,2601.0,3.0]
[1723851473126,1.21084309,2601.2,2601.0,3.0]
[1723851473327,0.05955227,2601.1,2601.0,3.0]
[1723851473638,1.21084309,2601.2,2601.0,3.0]
[1723851473869,0.05955227,2601.1,2601.0,3.0]
[1723851474599,4.16564309,2601.3,2601.0,3.0]
[1723851474997,1.27039833,2601.2,2601.0,3.0]
[1723851475958,1.664,2601.1,2601.0,3.0]
[1723851476524,1.72345714,2601.1,2601.0,3.0]
[1723851478264,0.05945714,2601.1,2601.0,11.758286]
[1723851478469,1.664,2601.3,2601.2,3.84437]
[1723851478759,1.664,2601.3,2601.2,8.151954]
[1723851480055,1.72376532,2601.3,2601.2,8.151954]
[1723851480272,1.72376532,2601.3,2601.2,3.0]
[1723851480471,4.02966532,2601.3,2601.2,3.0]
[1723851481877,4.72966532,2601.3,2601.2,3.0]
[1723851482081,6.34412278,2601.3,2600.9,3.0]
[1723851482377,1.20967696,2601.2,2600.9,3.0]
[1723851482767,0.05957193,2601.1,2600.9,3.0]
[1723851483987,1.664,2601.0,2600.9,3.0]
[1723851484360,1.72347382,2601.0,2600.9,3.0]
[1723851489394,1.72347382,2601.0,2600.9,6.84482]
[1723851489948,0.05947382,2601.0,2600.9,11.758632]
[1723851490273,1.664,2601.2,2601.1,3.84452]
[1723851490649,1.664,2601.2,2601.1,6.84452]
[1723851491101,1.7235749,2601.2,2601.1,6.84452]
[1723851498264,1.7235749,2601.2,2601.1,10.68904]
[1723851498467,1.20967696,2601.5,2601.4,7.68816]
[1723851498669,2.87367696,2602.0,2601.8,3.84349]
[1723851498931,2.87367696,2602.0,2601.6,2.4113]
[1723851498932,1.20967696,2602.1,2602.0,3.84319]
[1723851499068,1.664,2602.2,2602.1,3.84304]
[1723851499420,1.20967696,2602.5,2602.2,3.8429]
[1723851499571,3.68977696,2602.7,2602.3,3.0]
[1723851499766,0.7,2602.6,2602.4,3.8426]
[1723851499970,0.7,2602.6,2602.5,3.0]
[1723851500618,1.30042344,2602.6,2602.5,3.0]
[1723851500797,0.7,2602.3,2602.2,3.0]
[1723851501168,1.30042344,2602.6,2602.2,6.8429]
[1723851501374,1.30042344,2602.6,2602.2,10.68562]
[1723851501375,0.7,2602.6,2602.2,10.68562]
[1723851501765,0.7,2602.6,2602.2,6.84281]
[1723851502269,0.05444163,2602.5,2602.4,3.8426]
[1723851502483,0.05444163,2602.5,2602.4,6.8426]
[1723851502770,0.05444163,2602.5,2602.4,3.0]
[1723851504908,0.05444163,2602.5,2602.2,3.0]
[1723851504909,0.7,2602.3,2602.2,3.0]
[1723851505328,0.75425726,2602.3,2602.2,3.0]
[1723851510137,0.75425726,2602.3,2602.2,6.8429]
[1723851511117,0.05425726,2602.3,2602.2,6.8429]
[1723851511307,0.05425726,2602.3,2602.2,11.83124226]
[1723851511503,2.4502,2602.7,2602.5,3.84245]
[1723851511725,2.4502,2602.7,2602.6,3.0]
[1723851512345,2.4502,2602.7,2602.4,3.0]
[1723851512346,0.7,2602.6,2602.4,3.0]
[1723851515349,0.05439626,2602.5,2602.4,3.0]
[1723851515850,0.05439626,2602.5,2602.4,6.8426]
[1723851516853,0.05439626,2602.5,2602.4,10.76204905]
[1723851517052,0.05439626,2602.5,2602.4,14.42292396]
[1723851517209,0.7,2603.2,2602.8,3.84192]
[1723851517409,0.7,2603.2,2602.9,3.0]
[1723851517634,0.7,2603.3,2602.9,6.84178]
[1723851517833,2.08992,2603.3,2602.9,6.84178]
[1723851518248,0.7,2603.2,2602.9,3.0]
[1723851518755,0.7,2603.3,2603.0,3.84171]
[1723851518970,0.7,2603.3,2603.1,3.0]
[1723851519522,0.7,2603.3,2602.9,3.0]
[1723851519755,1.76102,2603.3,2602.9,3.0]
[1723851520366,1.76102,2603.3,2602.9,6.84181]
[1723851520874,0.7,2603.3,2602.9,6.84181]
[1723851522363,0.7,2603.3,2602.9,3.0]
[1723851522571,0.05371521,2603.2,2602.9,3.0]
[1723851522963,0.7,2603.3,2602.9,3.0]
[1723851524279,2.4502,2603.4,2602.9,3.0]
[1723851524280,3.1502,2603.0,2602.9,3.0]
[1723851524441,3.1502,2603.0,2602.7,3.0]
[1723851525184,0.7,2602.5,2602.3,11.16264]
[1723851525384,0.7,2602.8,2602.5,3.84232]
[1723851526377,0.05320233,2602.7,2602.5,3.84232]
[1723851526585,0.05320233,2602.7,2602.6,3.0]
[1723851526742,0.7,2602.8,2602.6,3.0]
[1723851526945,0.05320233,2602.7,2602.6,3.0]
[1723851527236,0.7,2602.8,2602.6,3.0]
[1723851527649,0.05320233,2602.7,2602.6,3.0]
[1723851528090,0.7,2602.8,2602.6,3.0]
[1723851528436,2.4648011,2602.7,2602.6,3.0]
[1723851528635,2.4648011,2602.7,2602.3,3.84266]
[1723851528636,2.4648011,2602.7,2602.4,3.0]
[1723851528883,2.4116,2602.7,2602.4,3.0]
[1723851530963,0.7,2602.8,2602.5,3.84245]
[1723851531162,0.7,2602.8,2602.6,3.0]
[1723851531363,0.05253795,2602.7,2602.6,3.0]
[1723851531761,0.7,2602.8,2602.6,3.0]
[1723851532169,0.05156769,2602.7,2602.6,3.0]
[1723851532543,0.7,2602.8,2602.6,3.0]
[1723851532741,0.05156769,2602.7,2602.6,3.0]
[1723851532944,0.7,2602.8,2602.6,3.0]
[1723851533144,0.05156769,2602.7,2602.6,3.0]
[1723851533382,0.7,2602.8,2602.6,3.0]
[1723851533773,0.05156769,2602.7,2602.6,3.0]
[1723851534292,0.7,2602.8,2602.6,3.0]
[1723851534663,0.05156769,2602.7,2602.6,3.0]
[1723851535049,0.7,2602.8,2602.6,3.0]
[1723851535663,0.05156769,2602.7,2602.6,3.0]
[1723851535864,1.662,2602.7,2602.6,3.0]
[1723851536077,1.662,2602.7,2602.6,6.84231]
[1723851536257,1.662,2602.7,2602.6,3.0]
[1723851537505,4.0736,2602.7,2602.6,3.0]
[1723851537662,4.12516769,2602.7,2602.6,3.0]
[1723851540402,4.12516769,2602.7,2602.5,3.0]
[1723851540608,4.12516769,2602.7,2602.5,6.84245]
[1723851541263,4.12516769,2602.7,2602.5,3.0]
[1723851541469,4.12516769,2602.7,2602.4,3.0]
[1723851541677,2.46316769,2602.7,2602.4,3.0]
[1723851542188,0.7,2602.5,2602.4,3.0]
[1723851542393,0.7,2602.5,2602.2,3.0]
[1723851542592,1.662,2602.4,2602.2,3.0]
[1723851543005,0.05058386,2602.3,2602.2,3.0]
[1723851543324,0.05058386,2602.3,2602.2,6.8429]
[1723851543504,1.662,2602.4,2602.2,6.8429]
[1723851543711,0.05058386,2602.3,2602.2,6.8429]
[1723851544027,0.05058386,2602.3,2602.2,3.0]
[1723851544382,0.05058386,2602.3,2602.2,6.8429]
[1723851545073,0.05058386,2602.3,2602.2,3.0]
[1723851545321,0.05058386,2602.3,2602.2,6.8429]
[1723851545886,0.7,2602.5,2602.3,3.84268]
[1723851546081,0.7,2602.5,2602.4,3.0]
[1723851546717,0.7,2602.5,2602.4,6.8426]
[1723851549051,0.7,2602.8,2602.6,3.8423]
[1723851549207,2.362,2602.8,2602.7,3.0]
[1723851549526,2.41302627,2602.8,2602.7,3.0]
[1723851549701,3.62270323,2602.8,2602.7,3.0]
[1723851550103,3.62270323,2602.8,2602.6,3.0]
[1723851550312,1.662,2602.7,2602.6,3.0]
[1723851550521,1.71297549,2602.7,2602.6,3.0]
[1723851551005,2.92265245,2602.7,2602.6,3.0]
[1723851551531,1.71297549,2602.7,2602.6,3.0]
[1723851554415,5.31355245,2602.7,2602.6,3.0]
[1723851554622,5.31355245,2602.7,2602.5,3.0]
[1723851554623,6.27868452,2602.7,2602.5,3.0]
[1723851554921,3.65220468,2602.7,2602.5,3.0]
[1723851555243,0.7,2602.4,2602.3,6.84264]
[1723851557318,0.75089338,2602.4,2602.3,6.84264]
[1723851558327,0.75089338,2602.4,2602.3,7.911186]
[1723851561418,0.75089338,2602.4,2602.3,6.84264]
[1723851564737,3.14179338,2602.4,2602.3,3.0]
[1723851565892,4.35228352,2602.4,2602.1,3.0]
[1723851566188,1.662,2602.2,2602.1,3.0]
[1723851566586,1.71136058,2602.2,2602.1,3.0]
[1723851566738,0.7,2602.1,2601.9,6.84333]
[1723851566938,1.71116455,2602.0,2601.9,3.84333]
[1723851568377,1.71116455,2602.0,2601.9,6.84333]
[1723851572278,1.71116455,2602.0,2601.9,11.755343]
[1723851572279,0.04916455,2602.0,2601.9,11.755343]
[1723851572464,0.04916455,2602.0,2601.9,14.034243]
[1723851572840,0.04916455,2602.0,2601.9,15.37146363]
[1723851573144,0.7,2602.1,2602.0,3.84319]
[1723851573382,0.74923224,2602.1,2602.0,6.84319]
[1723851578199,0.7,2602.1,2602.0,6.84319]
[1723851578686,2.4938,2602.5,2602.0,6.84319]
[1723851578687,1.21049014,2602.5,2602.3,3.8426]
[1723851578917,1.21049014,2602.5,2602.4,3.8426]
[1723851579359,1.25758538,2602.5,2602.4,3.8426]
[1723851581665,0.7,2602.4,2602.3,3.8426]
[1723851581864,0.7,2602.4,2602.3,6.8426]
[1723851582186,0.74574617,2602.4,2602.3,6.8426]
[1723851582784,2.40774617,2602.4,2602.3,3.0]
[1723851582966,3.61823631,2602.4,2602.3,3.0]
[1723851583166,2.40774617,2602.4,2602.3,3.0]
[1723851583659,3.61823631,2602.4,2602.3,3.0]
[1723851583861,2.40774617,2602.4,2602.3,3.0]
[1723851584235,3.61823631,2602.4,2602.3,3.0]
[1723851585259,2.40774617,2602.4,2602.3,3.0]
[1723851586453,2.40774617,2602.4,2601.4,4.65077653]
[1723851586454,0.7,2601.7,2601.4,4.65077653]
[1723851586617,1.662,2601.5,2601.2,5.85052283]
[1723851586947,2.4066,2601.6,2601.2,5.85052283]
[1723851586948,0.74497285,2601.4,2601.2,3.84427]
[1723851587268,0.74497285,2601.4,2601.0,4.65133653]
[1723851587269,0.7,2601.4,2601.0,3.84458]
[1723851587543,1.662,2601.1,2601.0,3.84458]
[1723851587748,1.70667861,2601.1,2601.0,3.84458]
[1723851588342,1.70667861,2601.1,2600.8,3.84487]
[1723851588343,4.11327861,2601.1,2600.8,3.84483]
[1723851588546,4.81327861,2601.1,2600.8,3.84483]
[1723851589501,3.15127861,2601.1,2600.9,3.0]
[1723851589831,1.662,2601.0,2600.9,3.0]
[1723851590033,3.15127861,2601.1,2600.9,6.84482]
[1723851590232,0.04448093,2601.0,2600.9,6.84482]
[1723851590752,0.04448093,2601.0,2600.9,14.053805]
[1723851590932,1.662,2601.4,2601.2,3.84424]
[1723851591110,1.662,2601.4,2601.3,3.0]
[1723851591959,0.7,2601.5,2601.3,3.0]
[1723851592170,2.4066,2601.4,2601.3,3.0]